Cogmind - Beta 12 @@@ ROGUE MODE // 2023.10.14 @ 01:25:21 Player: monistgf Result: Self-destructed Performance ------------- Evolutions (7) 3500 Regions Visited (14) 2800 Robots Destroyed (144) 720 Value Destroyed (6254) 6254 Prototype IDs (12) 240 Alien Tech Used (0) 0 Bonus (3543) 3543 TOTAL SCORE: 17057 Bonus ------- High Alert Combat Kills 1942 Follower Combat Kills 2349 Network Hubs Disabled 200 Aligned with FarCom 300 Built Enhanced Grunts 300 Friendly Fire -1548 Cogmind --------- Core Integrity 557/1300 Matter 300/300 Energy 325/325 System Corruption 8% Temperature Cool (0) Movement Walking (400) Ox4 Location -3/Research Parts ------- > --- POWER (1) -------- Reinforced Antimatter Reactor > --- PROPULSION (7) --- Flexi-carbon Leg > --- UTILITY (8) ------ Advanced Heat Sink Advanced Heat Sink High-capacity Storage Unit Advanced Targeting Computer Improved System Guard > --- WEAPON (5) ------- Matter Neutralizer Heavy Machine Gun > --- INVENTORY (20) --- Reinforced Fission Core Light Antimatter Reactor Reinforced Antimatter Reactor High-capacity Storage Unit High-capacity Matter Pod (200) Medium Regenerative Plating Phasing Sabre Peak State ------------ > --- POWER ------------ Reinforced Antimatter Reactor > --- PROPULSION ------- Armored Leg Enhanced Flexi-carbon Leg Myomer Leg Myomer Leg Myomer Leg Myomer Leg Biometal Leg > --- UTILITY ---------- Experimental Heat Sink High-capacity Storage Unit Advanced Targeting Computer Improved Kinecellerator Weapon Cycler Phase Shifter Centrium Medium Armor Plating Medium Regenerative Plating > --- WEAPON ----------- Quantum Rifle Railgun Railgun Railgun Advanced KE Penetrator > --- INVENTORY -------- Reinforced Antimatter Reactor Reinforced Antimatter Reactor Flexi-carbon Leg Flexi-carbon Leg Myomer Leg Myomer Leg Experimental Heat Sink High-capacity Storage Unit High-capacity Matter Pod Improved Kinecellerator Improved System Guard Long-range Tractor Beam Quantum Rifle Long-range Proton Cannon Matter Neutralizer KE Penetrator Hardcell Cannon Heavy Rocket Launcher Heavy Rocket Launcher Phasing Sabre [Rating: 145] Favorites ----------- Power Reinforced Antimatter Reactor Engine Angular Momentum Engine Power Core Neutrino Core Reactor Reinforced Antimatter Reactor Propulsion Flexi-carbon Leg Leg Flexi-carbon Leg Utility Advanced Targeting Computer Device Weapon Cycler Storage High-capacity Storage Unit Processor Advanced Targeting Computer Protection Hardened Medium Armor Plating Weapon Gauss Rifle Energy Gun Advanced Plasma Rifle Energy Cannon Long-range Proton Cannon Ballistic Gun Gauss Rifle Ballistic Cannon Magnetic Acceleration Cannon Launcher Heavy Rocket Launcher Impact Weapon Powered Hammer Slashing Weapon Power Sword Build | -11 -10 -10 -10 -9 -8 -7 -6 -5 -4 -4 -4 -4 -4 -3 ------- Run | Jun Mat Min Exi Min Mat Fac Fac Fac Fac Ext Cet Arc Hub Res Slots Evolved 14 | . . . . . 4 2 2 2 2 . . . . 2 Power . | . . . . . . . . . . . . . . . Propulsion 5 | . . . . . 2 1 1 . . . . . . 1 Utility 6 | . . . . . 1 . 1 2 1 . . . . 1 Weapon 3 | . . . . . 1 1 . . 1 . . . . . Parts Attached 176 | . 2 2 . . 23 17 12 13 6 35 22 2 4 38 Power 9 | . . . . . 3 . 1 1 1 . 2 . . 1 Engine 4 | . . . . . 3 . 1 . . . . . . . Core 1 | . . . . . . . . 1 . . . . . . Reactor 4 | . . . . . . . . . 1 . 2 . . 1 Propulsion 54 | . . 1 . . 7 8 6 2 . 8 6 . 1 15 Treads . | . . . . . . . . . . . . . . . Leg 54 | . . 1 . . 7 8 6 2 . 8 6 . 1 15 Wheel . | . . . . . . . . . . . . . . . Hover . | . . . . . . . . . . . . . . . Flight . | . . . . . . . . . . . . . . . Utility 46 | . 1 1 . . 3 2 1 7 3 9 9 . 1 9 Device 29 | . 1 . . . . . 1 5 2 5 6 . 1 8 Storage 3 | . . 1 . . . 1 . 1 . . . . . . Processor 4 | . . . . . 2 . . 1 . . . . . 1 Hackware . | . . . . . . . . . . . . . . . Protection 10 | . . . . . 1 1 . . 1 4 3 . . . Artifact . | . . . . . . . . . . . . . . . Weapon 67 | . 1 . . . 10 7 4 3 2 18 5 2 2 13 Energy Gun 6 | . . . . . . . . . 2 1 . 2 . 1 Energy Cannon 5 | . . . . . . . . . . 2 1 . . 2 Ballistic Gun 41 | . 1 . . . 9 4 1 2 . 13 3 . 2 6 Ballistic Cannon 3 | . . . . . . . 1 . . . 1 . . 1 Launcher 4 | . . . . . . . 1 . . . . . . 3 Special Weapon . | . . . . . . . . . . . . . . . Impact Weapon 5 | . . . . . 1 3 1 . . . . . . . Slashing Weapon 3 | . . . . . . . . 1 . 2 . . . . Piercing Weapon . | . . . . . . . . . . . . . . . Special Melee Weapon . | . . . . . . . . . . . . . . . Unidentified Prototypes 10 | . . . . . 1 . 1 2 1 . 5 . . . Parts Lost 40 | . . . . . . 1 . . . 1 . . 1 37 Power 1 | . . . . . . . . . . . . . . 1 Propulsion 15 | . . . . . . 1 . . . . . . . 14 Utility 10 | . . . . . . . . . . 1 . . 1 8 Weapon 14 | . . . . . . . . . . . . . . 14 Highest Loss Streak 9 | . . . . . . 1 . . . 1 . . 1 9 To Critical Strikes 2 | . . . . . . . . . . . . . . 2 Average Slot Usage (%) 98 | . 95 100 100 100 99 100 99 99 100 99 99 100 100 85 Engine 4 | . 14 14 14 14 9 7 6 4 . . . . . . Reactor 2 | . . . . . . . . . 4 5 4 5 5 4 Leg 33 | . 28 28 28 28 36 38 40 35 31 31 31 31 31 28 Device 9 | . 9 14 14 14 2 . 6 10 15 12 11 10 10 14 Storage 6 | . 14 14 14 14 9 7 6 5 5 5 5 5 5 4 Processor 8 | . . . . . 9 7 6 10 10 10 10 10 9 5 Protection 5 | . . . . . 5 7 6 5 5 7 8 10 10 5 Energy Gun 2 | . . . . . . . . . 5 4 5 8 10 3 Ballistic Gun 21 | . 28 28 28 28 26 28 20 19 21 20 20 17 15 13 Naked Turns . | . . . . . . . . . . . . . . . Heaviest Build 116 | 12 14 19 19 19 35 74 82 84 100 109 114 113 115 116 Greatest Support 172 | 20 20 25 25 25 66 79 114 119 119 134 134 131 131 172 Greatest Overweight (x) 2 | . . . . . . . . . . . . . . 2 Average Overweight (x) . | . . . . . . . . . . . . . . . Largest Inventory Capacity 20 | . 8 10 10 10 10 20 20 20 20 20 20 20 20 20 Average Capacity 18 | . 8 9 10 10 10 16 20 20 20 20 20 20 20 20 Most Carried 20 | . 8 10 10 10 10 20 20 20 20 20 20 20 20 20 Average Carried 17 | . 7 9 9 10 9 13 19 19 19 19 19 20 19 16 Final Capacity 20 | 8 8 10 10 10 10 20 20 20 20 20 20 20 20 20 Final Carried 20 | 6 8 10 10 10 10 20 20 20 20 20 20 20 20 7 Class Distribution -------------------- 26% | Skirmisher 19% | Scavenger-Skirmisher 11% | Scavenger-Gunner 8% | Mutant 7% | Gunner 6% | Commander-Skirmisher 6% | Scavenger-Tank 3% | Assassin 3% | Commander-Gunner Dominant Class ---------------- Mutant | -10/Materials Mutant | -10/Mines Mutant | -10/Exiles Skirmisher | -9/Mines Scavenger-Skirmisher | -8/Materials Scavenger-Skirmisher | -7/Factory Skirmisher | -6/Factory Skirmisher | -5/Factory Skirmisher | -4/Factory Scavenger-Tank | -4/Extension Commander-Gunner | -4/Cetus Scavenger-Gunner | -4/Archives Scavenger-Gunner | -4/Hub_04(d) Scavenger-Gunner | -3/Research Resources | -11 -10 -10 -10 -9 -8 -7 -6 -5 -4 -4 -4 -4 -4 -3 ----------- Run | Jun Mat Min Exi Min Mat Fac Fac Fac Fac Ext Cet Arc Hub Res Matter Collected 5624 | 200 . 60 . 16 485 523 . 573 135 1108 503 64 165 1792 Remotely 868 | . . . . . . . . . . . 94 . . 774 Salvage Created 7350 | . . 29 . 23 670 671 . 573 135 1027 489 94 442 3197 Parts 335 | . . 2 . 5 43 32 . 20 4 44 17 2 18 148 Haulers Intercepted 3 | . . . . . 3 . . . . . . . . . Recyclers Shooed 13 | . . . . . . 2 . . . 4 . . . 7 Parts Field Recycled . | . . . . . . . . . . . . . . . Retrieved Matter . | . . . . . . . . . . . . . . . Parts Self-Destructed . | . . . . . . . . . . . . . . . Prevented . | . . . . . . . . . . . . . . . Kills | -11 -10 -10 -10 -9 -8 -7 -6 -5 -4 -4 -4 -4 -4 -3 ------- Run | Jun Mat Min Exi Min Mat Fac Fac Fac Fac Ext Cet Arc Hub Res Combat Hostiles Destroyed 92 | . . 2 . 2 12 10 . 3 1 9 7 1 5 40 Guns 75 | . . 2 . 2 12 10 . 3 1 9 7 1 5 23 Cannons 7 | . . . . . . . . . . . . . . 7 AOE 10 | . . . . . . . . . . . . . . 10 Classes Destroyed 18 | . . 1 . . 4 6 . 1 1 1 . . 1 3 Worker 20 | . . . . . . 1 . . . . . . 1 18 Builder 10 | . . . . . . . . . . . . . . 10 Hauler 3 | . . . . . 3 . . . . . . . . . Recycler 10 | . . . . . . 2 . 3 . 1 . . . 4 Mechanic 1 | . . . . . . . . . . . . . 1 . Operator 5 | . . . . . . . . 1 . 4 . . . . Watcher 3 | . . . . . . . . . 1 . 1 . . 1 Swarmer 15 | . . 2 . 2 4 1 . . . . 1 . . 5 Saboteur 2 | . . . . . . . . . . . . . . 2 Grunt 30 | . . . . . 5 3 . . . 2 4 . 4 12 Brawler 3 | . . . . . . 1 . . . . . . . 2 Duelist 1 | . . . . . . 1 . . . . . . . . Sentry 10 | . . . . . 1 1 . 1 1 4 . 1 1 . Specialist 2 | . . . . . 2 . . . . . . . . . Hunter 12 | . . . . . . 1 . . . 2 . . . 9 Programmer 12 | . . . . . . 2 . 2 . . . . . 8 Heavy 2 | . . . . . . . . . . . . . . 2 Behemoth 1 | . . . . . . . . . . 1 . . . . Cetus Guard 2 | . . . . . . . . . . . 2 . . . Best Kill Streak 20 | . . 2 . 2 4 5 . 3 1 4 2 1 4 20 Combat Bots Only 11 | . . 2 . 2 4 3 . 2 1 4 2 1 3 11 Max Kills in Single Turn 4 | . . 1 . 1 1 2 . 1 1 2 1 1 2 4 Gunslinging 1 | . . . . . . . . . . . . . . 1 Exploded 4 | . . . . . . . . . . . . . . 4 Melee . | . . . . . . . . . . . . . . . Uniques/NPCs Destroyed . | . . . . . . . . . . . . . . . Combat | -11 -10 -10 -10 -9 -8 -7 -6 -5 -4 -4 -4 -4 -4 -3 -------- Run | Jun Mat Min Exi Min Mat Fac Fac Fac Fac Ext Cet Arc Hub Res Damage Taken 9668 | . . 39 . 25 403 632 . 223 101 1001 248 29 251 6716 Core 1025 | . . 6 . 10 42 49 . 22 . 32 42 29 50 743 Absorbed by Shields 334 | . . . . . . . . . . 319 15 . . . Regen/Repaired (Parts) 270 | . . . . . . . . . . . 62 . 4 204 Core Remaining (%) 94 | 100 . . . 93 92 93 100 97 . . . . 86 . Volleys Fired 280 | . . 5 . 4 44 24 . 13 6 44 20 2 10 108 Largest 5 | . . 2 . 2 3 4 . 4 5 5 5 5 5 5 Hottest 293 | . . 40 . 40 84 112 . 137 200 270 224 224 293 293 Shots Fired 1001 | . . 10 . 8 132 91 . 36 30 196 71 10 47 370 Gun 926 | . . 10 . 8 132 91 . 30 30 190 64 10 47 314 Cannon 66 | . . . . . . . . 6 . 6 7 . . 47 Launcher 9 | . . . . . . . . . . . . . . 9 Special . | . . . . . . . . . . . . . . . Kinetic 845 | . . 10 . 8 132 91 . 36 24 155 58 8 29 294 Thermal 135 | . . . . . . . . . 6 35 12 2 18 62 Explosive 9 | . . . . . . . . . . . . . . 9 Electromagnetic 12 | . . . . . . . . . . 6 1 . . 5 Robot Hit Streak 19 | . . 1 . 2 14 11 . 11 8 16 9 6 12 19 Robot Miss Streak 8 | . . 2 . 2 8 2 . 2 2 4 4 2 2 4 Penetration Max 2 | . . . . . . 1 . . . 1 1 . 1 2 Secondary Targets 18 | . . 1 . . . 1 . . . 2 4 . . 10 Max Gunslinging Chain 2 | . . 1 . . . 1 . . . 1 1 . . 2 Shots Hit Robots 630 | . . 4 . 4 84 63 . 23 21 129 36 8 29 229 Core Hits 329 | . . 2 . 2 31 29 . 11 6 53 22 4 18 151 Critical Kills 10 | . . . . . . 1 . . . 3 2 1 2 1 Critical Parts Destroyed 17 | . . . . . 1 1 . . . 1 1 . 4 9 Critical Strikes 30 | . . . . . 1 2 . . 1 6 3 1 6 10 Burn 3 | . . . . . . . . . 1 2 . . . . Destroy 27 | . . . . . 1 2 . . . 4 3 1 6 10 Melee Attacks 46 | . . . . . 1 20 1 4 . 20 . . . . Impact 22 | . . . . . 1 20 1 . . . . . . . Slashing 24 | . . . . . . . . 4 . 20 . . . . Piercing . | . . . . . . . . . . . . . . . Sneak Attacks 3 | . . . . . . . . 3 . . . . . . Combat Hostiles . | . . . . . . . . . . . . . . . Follow-up Attacks . | . . . . . . . . . . . . . . . Damage Inflicted 21661 | . . 53 . 40 1252 1549 . 784 478 3724 1204 290 1342 10945 Guns 17209 | . . 53 . 40 1246 1521 . 534 456 3404 1204 290 927 7534 Cannons 1228 | . . . . . . . . . . 35 . . . 1193 Explosions 2556 | . . . . . . . . . . . . . 360 2196 Melee 415 | . . . . . . . . 246 . 169 . . . . Ramming 253 | . . . . . 6 28 . 4 22 116 . . 55 22 Kinetic 15948 | . . 53 . 40 1246 1521 . 534 400 2817 1011 232 636 7458 Thermal 2478 | . . . . . . . . . 56 587 193 58 343 1241 Explosive 2196 | . . . . . . . . . . . . . . 2196 Electromagnetic 371 | . . . . . . . . . . 35 . . 308 28 Impact . | . . . . . . . . . . . . . . . Slashing 415 | . . . . . . . . 246 . 169 . . . . Piercing . | . . . . . . . . . . . . . . . Highest Corruption 17 | . . . . . . . . 2 . . . . 2 17 Average Corruption 4 | . . . . . . . . 1 . . . . 1 8 Corruption Purged . | . . . . . . . . . . . . . . . Corruption Blocked . | . . . . . . . . . . . . . . . Effects 25 | . . . . . . . . 8 . . . . . 17 Message Errors 3 | . . . . . . . . 2 . . . . . 1 Matter Fused 3 | . . . . . . . . 1 . . . . . 2 Heat Flow Errors 2 | . . . . . . . . 1 . . . . . 1 Energy Discharges 7 | . . . . . . . . 4 . . . . . 3 Parts Rejected 1 | . . . . . . . . . . . . . . 1 Data Loss (minor) 3 | . . . . . . . . . . . . . . 3 Misdirections 1 | . . . . . . . . . . . . . . 1 Weapon Failures 5 | . . . . . . . . . . . . . . 5 Overload Shots . | . . . . . . . . . . . . . . . Overflow Damage 288 | . . . . . . . . 48 . 126 . . 15 99 Projectiles 83 | . . . . . . . . . . . . . . 83 Explosions 16 | . . . . . . . . . . . . . . 16 Melee 189 | . . . . . . . . 48 . 126 . . 15 . Knockbacks 10 | . . . . . . . . . . 1 . . . 9 Impact 1 | . . . . . . . . . . 1 . . . . Kinetic 9 | . . . . . . . . . . . . . . 9 Secondary . | . . . . . . . . . . . . . . . Self-Inflicted Damage 212 | . . . . . . . . . . . . . 100 112 Shots 3 | . . . . . . . . . . . . . 1 2 Rammed . | . . . . . . . . . . . . . . . Targets Rammed 21 | . . . . . 1 5 . 2 1 8 . . 1 3 Kicked 21 | . . . . . 1 5 . 2 1 8 . . 1 3 Crushed . | . . . . . . . . . . . . . . . Highest Temperature 423 | . . . . . 154 194 . 173 119 277 144 75 293 423 Average Temperature 84 | . . . . . 35 68 . 57 52 73 52 38 110 118 Received Heat Transfer 779 | . . . . . 144 54 . 21 18 179 45 9 . 309 Effects 9 | . . . . . . . . . . . . . . 9 Energy Bleed 3 | . . . . . . . . . . . . . . 3 Interference 6 | . . . . . . . . . . . . . . 6 Siege Activations . | . . . . . . . . . . . . . . . Robots Corrupted . | . . . . . . . . . . . . . . . Combat Hostiles . | . . . . . . . . . . . . . . . Parts Fried . | . . . . . . . . . . . . . . . Impact Corruptions 2 | . . . . . . . . . . 1 . . 1 . Robots Melted . | . . . . . . . . . . . . . . . Combat Hostiles . | . . . . . . . . . . . . . . . Parts Melted 5 | . . . . . . . . . 1 1 1 . . 2 Heat Transferred 3806 | . . . . . . . . . 200 1250 325 100 470 1461 Parts Sabotaged . | . . . . . . . . . . . . . . . Parts Stolen . | . . . . . . . . . . . . . . . Parts Stripped . | . . . . . . . . . . . . . . . Power Chain Reactions 1 | . . . . . . . . . . . . . 1 . Missiles Intercepted . | . . . . . . . . . . . . . . . Alert | -11 -10 -10 -10 -9 -8 -7 -6 -5 -4 -4 -4 -4 -4 -3 ------- Run | Jun Mat Min Exi Min Mat Fac Fac Fac Fac Ext Cet Arc Hub Res Peak Influence 1422 | . 15 55 . 190 400 291 109 69 85 904 1422 671 1202 1365 Initial 630 | . . 5 . . 74 142 80 . 14 . 470 494 234 630 Average 304 | . 11 37 . 83 250 171 40 11 24 323 1048 653 592 912 Maximum Alert Level 4 | . . . . . 2 1 . . . 3 4 2 4 4 Low Security (%) 58 | . 100 100 . 100 18 58 100 100 100 57 . . . . Level 1 13 | . . . . . 72 41 . . . 11 . . 23 . Level 2 10 | . . . . . 9 . . . . 9 12 100 43 32 Level 3 13 | . . . . . . . . . . 21 47 . 29 46 Level 4 4 | . . . . . . . . . . . 40 . 4 21 Level 5 . | . . . . . . . . . . . . . . . High Security . | . . . . . . . . . . . . . . . Max Security . | . . . . . . . . . . . . . . . Squads Dispatched 31 | . . . . . 2 5 1 3 . 4 . . 4 12 Investigation 6 | . . . . . 1 1 . 1 . 2 . . . 1 Extermination 6 | . . . . . . 2 1 1 . . . . 1 1 Reinforcement 12 | . . . . . 1 2 . . . 2 . . 2 5 Assault 4 | . . . . . . . . 1 . . . . 1 2 Garrison 3 | . . . . . . . . . . . . . . 3 Intercept . | . . . . . . . . . . . . . . . Searches Triggered . | . . . . . . . . . . . . . . . Construction Impeded 4 | . . . . . . . . . . 1 . . . 3 Haulers Reinforced 1 | . . . . . . 1 . . . . . . . . Active Scanning Responses . | . . . . . . . . . . . . . . . Cargo Convoy Interrupts 1 | . . . . . . . . . . . . . . 1 Stealth | -11 -10 -10 -10 -9 -8 -7 -6 -5 -4 -4 -4 -4 -4 -3 --------- Run | Jun Mat Min Exi Min Mat Fac Fac Fac Fac Ext Cet Arc Hub Res Distress Signals 10 | . . . . . 2 1 . . . 2 1 . 1 3 Communications Jammed . | . . . . . . . . . . . . . . . Distress Signals . | . . . . . . . . . . . . . . . Times Spotted 199 | . 3 2 . 8 22 14 . 5 2 41 18 4 14 66 Peak Tracking Total 9 | . 3 2 . 4 4 3 1 2 1 4 5 2 4 9 Tactical Retreats 4 | . . . . . . . . 1 . . . . . 3 Traps | -11 -10 -10 -10 -9 -8 -7 -6 -5 -4 -4 -4 -4 -4 -3 ------- Run | Jun Mat Min Exi Min Mat Fac Fac Fac Fac Ext Cet Arc Hub Res Traps Triggered 9 | . . . . . 1 1 . 3 . 3 . . . 1 Indirectly . | . . . . . . . . . . . . . . . Trap Hack Attempts . | . . . . . . . . . . . . . . . Triggered . | . . . . . . . . . . . . . . . Disarmed . | . . . . . . . . . . . . . . . Reprogrammed . | . . . . . . . . . . . . . . . Reused . | . . . . . . . . . . . . . . . Traps Extracted . | . . . . . . . . . . . . . . . Installed . | . . . . . . . . . . . . . . . Triggered . | . . . . . . . . . . . . . . . Machines | -11 -10 -10 -10 -9 -8 -7 -6 -5 -4 -4 -4 -4 -4 -3 ---------- Run | Jun Mat Min Exi Min Mat Fac Fac Fac Fac Ext Cet Arc Hub Res Machines Disabled 34 | . . . . . 1 5 . . . 6 11 2 6 3 Max in Single Turn 3 | . . . . . 1 1 . . . 1 2 1 3 1 Garrison Access 1 | . . . . . . . . 1 . . . . . . Network Hub 1 | . . . . . . . . . . . . . 1 . Machines Repaired . | . . . . . . . . . . . . . . . Machines Sabotaged . | . . . . . . . . . . . . . . . Overloaded Fab Kills . | . . . . . . . . . . . . . . . Hacking | -11 -10 -10 -10 -9 -8 -7 -6 -5 -4 -4 -4 -4 -4 -3 --------- Run | Jun Mat Min Exi Min Mat Fac Fac Fac Fac Ext Cet Arc Hub Res Machines Accessed 32 | . . . . . 2 2 4 5 1 11 2 . 2 3 Terminals 29 | . . . . . 2 1 4 3 1 11 2 . 2 3 Fabricators 3 | . . . . . . 1 . 2 . . . . . . Repair Stations . | . . . . . . . . . . . . . . . Recycling Units . | . . . . . . . . . . . . . . . Scanalyzers . | . . . . . . . . . . . . . . . Garrison Access . | . . . . . . . . . . . . . . . Total Hacks 69 | . . . . . 5 5 9 13 1 23 3 . 3 7 Successful 31 | . . . . . 3 1 5 5 1 14 1 . . 1 Failed 36 | . . . . . 2 4 3 8 . 8 2 . 3 6 Catastrophic 12 | . . . . . . 2 . 3 . 2 1 . . 4 Database Lockouts 2 | . . . . . . . 1 . . 1 . . . . Manual 31 | . . . . . 2 2 4 4 . 8 2 . 3 6 Terminals 62 | . . . . . 5 2 9 9 1 23 3 . 3 7 Fabricators 7 | . . . . . . 3 . 4 . . . . . . Repair Stations . | . . . . . . . . . . . . . . . Recycling Units . | . . . . . . . . . . . . . . . Scanalyzers . | . . . . . . . . . . . . . . . Garrison Access . | . . . . . . . . . . . . . . . Terminal Hacks 23 | . . . . . 2 . 4 3 1 12 1 . . . Record 7 | . . . . . . . 2 . . 4 1 . . . Prototype ID Bank 1 | . . . . . . . 1 . . . . . . . Open Door 7 | . . . . . . . . . 1 6 . . . . Level Access Points 1 | . . . . . . . 1 . . . . . . . Branch Access Points 2 | . . . . . 1 . . . . 1 . . . . Alert Level 2 | . . . . . . . . 2 . . . . . . Zone Layout 3 | . . . . . 1 . . 1 . 1 . . . . Fabricator Hacks 1 | . . . . . . . . 1 . . . . . . Network Status 1 | . . . . . . . . 1 . . . . . . Repair Station Hacks . | . . . . . . . . . . . . . . . Recycling Unit Hacks . | . . . . . . . . . . . . . . . Scanalyzer . | . . . . . . . . . . . . . . . Garrison Access Hacks . | . . . . . . . . . . . . . . . Unauthorized Hacks 7 | . . . . . 1 1 1 1 . 2 . . . 1 Terminals 7 | . . . . . 1 1 1 1 . 2 . . . 1 Track 1 | . . . . . . . . . . 1 . . . . Botnet 6 | . . . . . 1 1 1 1 . 1 . . . 1 Fabricators . | . . . . . . . . . . . . . . . Repair Stations . | . . . . . . . . . . . . . . . Recycling Units . | . . . . . . . . . . . . . . . Scanalyzers . | . . . . . . . . . . . . . . . Garrison Access . | . . . . . . . . . . . . . . . Data Cores Recovered 3 | . . . . . . . . 1 . 2 . . . . Used 3 | . . . . . . . . 1 . 2 . . . . Hacking Detections 27 | . . . . . 2 2 4 4 . 8 2 . 2 3 Full Trace Events 4 | . . . . . . 1 . . . 2 . . . 1 Feedback Events . | . . . . . . . . . . . . . . . Feedback Blocked . | . . . . . . . . . . . . . . . Robot Schematics Acquired . | . . . . . . . . . . . . . . . Robots Built . | . . . . . . . . . . . . . . . Authchips . | . . . . . . . . . . . . . . . Time . | . . . . . . . . . . . . . . . Total Robot Build Rating . | . . . . . . . . . . . . . . . Part Schematics Acquired . | . . . . . . . . . . . . . . . Parts Built . | . . . . . . . . . . . . . . . Authchips . | . . . . . . . . . . . . . . . Time . | . . . . . . . . . . . . . . . Total Part Build Rating . | . . . . . . . . . . . . . . . Parts Repaired . | . . . . . . . . . . . . . . . Time . | . . . . . . . . . . . . . . . Parts Recycled . | . . . . . . . . . . . . . . . Recycled Matter . | . . . . . . . . . . . . . . . Retrieved Matter . | . . . . . . . . . . . . . . . Retrieved Components . | . . . . . . . . . . . . . . . Parts Scanalyzed . | . . . . . . . . . . . . . . . Part Schematics Acquired . | . . . . . . . . . . . . . . . Parts Damaged . | . . . . . . . . . . . . . . . Bothacking | -11 -10 -10 -10 -9 -8 -7 -6 -5 -4 -4 -4 -4 -4 -3 ------------ Run | Jun Mat Min Exi Min Mat Fac Fac Fac Fac Ext Cet Arc Hub Res Used RIF Installer . | . . . . . . . . . . . . . . . Robots Hacked . | . . . . . . . . . . . . . . . Non-combat . | . . . . . . . . . . . . . . . Combat . | . . . . . . . . . . . . . . . Robot Hacks Applied . | . . . . . . . . . . . . . . . Relay Couplers Released 3 | . . . . . . . . 3 . . . . . . Machine Destruction 3 | . . . . . . . . 3 . . . . . . Fabnet Peak Effective % . | . . . . . . . . . . . . . . . Robots Rewired 14 | . . . . . . . . . . 14 . . . . Allies Hacked 1 | . . . . . . . . . . . . . 1 . Hacks Repelled . | . . . . . . . . . . . . . . . Allies | -11 -10 -10 -10 -9 -8 -7 -6 -5 -4 -4 -4 -4 -4 -3 -------- Run | Jun Mat Min Exi Min Mat Fac Fac Fac Fac Ext Cet Arc Hub Res Total Allies 29 | . . . . 1 . . . . . 23 5 . . . Largest Group 16 | . . . . 1 1 . . . . 16 16 14 12 2 Highest-Rated Group 817 | . . . . 31 31 . . . . 739 817 817 744 185 Highest-Rated Ally 159 | . . . . 31 31 . . . . 159 152 96 96 96 Total Orders 1 | . . . . . . . . . . . 1 . . . AID 1 | . . . . . . . . . . . 1 . . . Ally Attacks 320 | . . . . 13 18 . . . . 125 68 24 64 8 Total Damage 8396 | . . . . 211 270 . . . . 2990 2025 660 2128 112 Kills 68 | . . . . 6 3 . . . . 23 15 3 18 . Allies Corrupted 1 | . . . . . . . . . . . . . 1 . Allies Melted . | . . . . . . . . . . . . . . . Intel | -11 -10 -10 -10 -9 -8 -7 -6 -5 -4 -4 -4 -4 -4 -3 ------- Run | Jun Mat Min Exi Min Mat Fac Fac Fac Fac Ext Cet Arc Hub Res Robot Analysis Total . | . . . . . . . . . . . . . . . Derelict Logs Recovered 1 | . . 1 . . . . . . . . . . . . Drone Launches . | . . . . . . . . . . . . . . . Drone Recoveries . | . . . . . . . . . . . . . . . Exploration | -11 -10 -10 -10 -9 -8 -7 -6 -5 -4 -4 -4 -4 -4 -3 ------------- Run | Jun Mat Min Exi Min Mat Fac Fac Fac Fac Ext Cet Arc Hub Res Turns Passed 10011 | . 107 276 444 89 685 1050 907 1857 426 2107 566 178 386 933 Spaces Moved 5413 | 1 83 192 367 40 305 541 554 946 176 1126 343 105 266 368 Core . | . . . . . . . . . . . . . . . Treads . | . . . . . . . . . . . . . . . Legs 5413 | 1 83 192 367 40 305 541 554 946 176 1126 343 105 266 368 Wheels . | . . . . . . . . . . . . . . . Hover . | . . . . . . . . . . . . . . . Flight . | . . . . . . . . . . . . . . . Fastest Speed 115 | 120 120 120 120 120 120 120 115 115 115 115 120 120 120 118 Average Speed 118 | 120 120 120 120 120 120 120 119 115 115 117 120 120 120 126 Slowest Speed 260 | 120 120 120 120 120 120 120 120 115 115 120 120 120 120 260 Overloaded Moves . | . . . . . . . . . . . . . . . Propulsion Burnouts . | . . . . . . . . . . . . . . . Robots Hopped . | . . . . . . . . . . . . . . . Cave-ins Triggered . | . . . . . . . . . . . . . . . Exploration Rate (%) 34 | 2 16 33 81 9 28 16 13 21 5 92 70 88 35 13 Regions Visited 14 Branch Regions 7 Pre-discovered Areas . | . . . . . . . . . . . . . . . Known Exits Taken 3 | . . 1 . . . . 1 . . 1 . . . . Unknown Exits Taken 11 | 1 1 . 1 1 1 1 . 1 1 . 1 1 1 . Scrap Searched 2 | . . 1 . 1 . . . . . . . . . . Spaces Dug 19 | . . . . . 1 12 1 5 . . . . . . Terrain Destroyed 317 | . . . . . 1 14 1 6 2 28 10 4 176 75 Melee 15 | . . . . . 1 12 1 1 . . . . . . Projectile 98 | . . . . . . 2 . 5 2 28 10 4 16 31 AOE 203 | . . . . . . . . . . . . . 160 43 Terrain Rammed . | . . . . . . . . . . . . . . . Walls Destroyed . | . . . . . . . . . . . . . . . Machines Disabled . | . . . . . . . . . . . . . . . Actions | -11 -10 -10 -10 -9 -8 -7 -6 -5 -4 -4 -4 -4 -4 -3 --------- Run | Jun Mat Min Exi Min Mat Fac Fac Fac Fac Ext Cet Arc Hub Res Total 8365 | . 90 230 371 75 538 846 801 1689 387 1803 462 152 313 608 Wait 2012 | . . 24 1 30 125 218 209 689 190 320 58 40 23 85 Move 5399 | . 82 191 366 39 304 540 553 945 175 1125 342 104 265 368 Hop . | . . . . . . . . . . . . . . . Pick Up 86 | . 4 4 2 1 13 15 10 8 4 14 3 1 4 3 Fast Attach 37 | . 1 . . . 8 2 2 3 1 4 6 1 . 9 Attach 39 | . . . . . 4 3 2 4 2 1 1 . 1 21 Detach 8 | . . . . . 2 . . 1 . 1 2 . . 2 Swap 100 | . 1 2 . . 11 12 8 6 3 30 15 1 3 8 Drop 129 | . 2 4 2 1 25 7 16 10 5 32 15 3 6 1 Fire 280 | . . 5 . 4 44 24 . 13 6 44 20 2 10 108 Melee 46 | . . . . . 1 20 1 4 . 20 . . . . Ram . | . . . . . . . . . . . . . . . Kick 21 | . . . . . 1 5 . 2 1 8 . . 1 3 Crush . | . . . . . . . . . . . . . . . Escape Stasis 10 | . . . . . . . . 4 . 6 . . . . Rewire 198 | . . . . . . . . . . 198 . . . . Trap . | . . . . . . . . . . . . . . . Miscellaneous . | . . . . . . . . . . . . . . . Route ------- -11/Junkyard -10/Materials -10/Mines -10/Exiles -9/Mines -8/Materials -7/Factory -6/Factory (discovered 5 exits: *Fac x4 / [*Low]) -5/Factory -4/Factory (discovered 2 exits: [*Upp] / *Ext) -4/Extension (discovered 2 exits: *Res / *Cet) -4/Cetus -4/Archives (discovered 3 exits: *Res / *Hub x2) -4/Hub_04(d) (discovered 2 exits: *Res x2) -3/Research History --------- Turn | Location | Event 1 | -11/Junkyard | Discovered new exit (range 0) 1 | -11/Junkyard | Entered Materials 43 | -10/Materials | Discovered new exit (range 11) 108 | -10/Materials | Entered Mines 109 | -10/Mines | Assembled infested the area 267 | -10/Mines | Identified exit to Exiles 301 | -10/Mines | Build established: Mutant 384 | -10/Mines | Entered Exiles 413 | -10/Exiles | Met 8R-AWN 431 | -10/Exiles | Met EX-HEX 471 | -10/Exiles | Met EX-BIN 484 | -10/Exiles | Aligned with FarCom system 485 | -10/Exiles | Given EX-Vault access code 520 | -10/Exiles | Met EX-DEC 562 | -10/Exiles | Visited The Gauntlet 812 | -10/Exiles | Discovered new exit (range 15) 828 | -10/Exiles | Entered Mines 831 | -9/Mines | Received a Mining Laser from a helpful Derelict 888 | -9/Mines | Discovered new exit (range 14) 917 | -9/Mines | Entered Materials 917 | -8/Materials | Accompanied by 1 ally 917 | -8/Materials | Evolved 4 slots: Propulsion x2, Utility x1, Weapon x1 1117 | -8/Materials | Build established: Skirmisher 1523 | -8/Materials | Discovered new exit (range 9) 1560 | -8/Materials | Build established: Scavenger-Skirmisher 1602 | -8/Materials | Entered Factory 1602 | -7/Factory | Evolved 2 slots: Propulsion x1, Weapon x1 2616 | -7/Factory | Discovered new exit (range 7) 2652 | -7/Factory | Entered another Factory area 2652 | -6/Factory | Evolved 2 slots: Propulsion x1, Utility x1 2899 | -6/Factory | Identified exit to Factory 2918 | -6/Factory | Central database locked down 3026 | -6/Factory | Found Prototype Launcher 3026 | -6/Factory | Identified Scatter Rocket Array 3179 | -6/Factory | Discovered new exit (range 5) 3221 | -6/Factory | Build established: Skirmisher 3559 | -6/Factory | Entered another Factory area 3559 | -5/Factory | Evolved 2 slots: Utility x2 3641 | -5/Factory | Spotted B-75 Beast 4675 | -5/Factory | Build established: Assassin 4884 | -5/Factory | Discovered new exit (range 22) 5128 | -5/Factory | Build established: Skirmisher 5416 | -5/Factory | Entered another Factory area 5416 | -4/Factory | Evolved 2 slots: Utility x1, Weapon x1 5735 | -4/Factory | Discovered new exit (range 10) 5803 | -4/Factory | Discovered new exit (range 10) 5842 | -4/Factory | Entered Extension 5953 | -4/Extension | Build established: Gunner 6076 | -4/Extension | Central database locked down 6446 | -4/Extension | Identified exit to Cetus 6462 | -4/Extension | Rescued a captive Derelict 6474 | -4/Extension | Rescued A7 6563 | -4/Extension | Rescued a captive Derelict 6651 | -4/Extension | Build established: Commander-Skirmisher 6790 | -4/Extension | Spotted B-86 Titan 6810 | -4/Extension | Allies destroyed B-86 Titan 6813 | -4/Extension | Spotted B-86 Titan 6825 | -4/Extension | Destroyed B-86 Titan 7012 | -4/Extension | Rescued a captive Derelict 7240 | -4/Extension | Door terminal overloaded 7245 | -4/Extension | Rescued a captive Derelict 7342 | -4/Extension | Disrupted transfer network 7557 | -4/Extension | Rescued a captive Derelict 7559 | -4/Extension | Rescued a captive Derelict 7604 | -4/Extension | Build established: Scavenger-Tank 7607 | -4/Extension | Rescued a captive Derelict 7611 | -4/Extension | Rescued a captive Derelict 7652 | -4/Extension | Discovered new exit (range 10) 7949 | -4/Extension | Entered Cetus 7949 | -4/Cetus | Accompanied by 16 allies (A7) 7954 | -4/Cetus | Acquired a Cetus Manufacturing Module code from A7 7963 | -4/Cetus | Spotted Cetus Guard 7964 | -4/Cetus | Spotted Cetus Guard 7966 | -4/Cetus | Spotted Cetus Guard 7969 | -4/Cetus | Spotted Cetus Guard 7978 | -4/Cetus | Allies destroyed Cetus Guard 7983 | -4/Cetus | Allies destroyed Cetus Guard 7988 | -4/Cetus | Destroyed Cetus Guard 7993 | -4/Cetus | Destroyed Cetus Guard 8076 | -4/Cetus | Extracted ID and sensor layout for unrecognized location from A7's data core 8123 | -4/Cetus | Found Prototype Protection 8123 | -4/Cetus | Identified Med. Regenerative Plating 8190 | -4/Cetus | Started Cetus Manufacturing Module 8215 | -4/Cetus | Manufactured an Enhanced Grunt 8240 | -4/Cetus | Manufactured an Enhanced Grunt 8265 | -4/Cetus | Manufactured an Enhanced Grunt 8290 | -4/Cetus | Manufactured an Enhanced Grunt 8315 | -4/Cetus | Manufactured an Enhanced Grunt 8468 | -4/Cetus | Discovered new exit (range 22) 8515 | -4/Cetus | Entered Archives 8515 | -4/Archives | Accompanied by 14 allies 8534 | -4/Archives | Discovered new exit (range 22) 8553 | -4/Archives | Discovered new exit (range 22) 8570 | -4/Archives | Discovered new exit (range 22) 8693 | -4/Archives | Entered Hub_04(d) 8693 | -4/Hub_04(d) | Accompanied by 12 allies 8817 | -4/Hub_04(d) | Discovered new exit (range 20) 8876 | -4/Hub_04(d) | Build established: Scavenger-Gunner 8891 | -4/Hub_04(d) | Discovered new exit (range 8) 8983 | -4/Hub_04(d) | First assault squad dispatched 9063 | -4/Hub_04(d) | Network Hub disabled 9079 | -4/Hub_04(d) | Entered Research 9079 | -3/Research | Accompanied by 2 allies 9079 | -3/Research | Evolved 2 slots: Propulsion x1, Utility x1 9329 | -3/Research | First assault squad dispatched 9617 | -3/Research | Lost 3 parts (2u1w) 9676 | -3/Research | System corruption reached 10% 9690 | -3/Research | Lost 9 parts (3n2u4w) 9724 | -3/Research | Garrison activated, responded to threat 9769 | -3/Research | Lost 4 parts (2n1u1w) 9848 | -3/Research | Lost 7 parts (3n2u2w) 9910 | -3/Research | Core integrity fell below 50% 9938 | -3/Research | Lost 8 parts (1p4n3w) 9973 | -3/Research | Destroyed 11 combat bots 10012 | -3/Research | Cargo convoy interrupted 10012 | -3/Research | Self-destructed Last Messages --------------- 10003_ Hardcell Cannon destroyed. 10003_ Slug penetrates Wall. 10004_ K-01 Serf collects debris. 10004_ Slug penetrates Wall. 10006_ Penetrated by Slug. 10006_ Coil Gun destroyed. 10007_ Penetrated by Slug. 10007_ Myomer Leg destroyed. 10007_ Slug penetrates Wall. 10008_ K-01 Serf collects debris. 10010_ Penetrated by Slug. 10010_ Lrn. Tractor Beam destroyed. 10011_ Slug penetrates Wall. 10011_ C-30 ARC bursts open, deploying its payload. 10011_ H-77 Assassin unfolds itself. 10011_ P-80 Master unfolds itself. 10011_ H-77 Assassin unfolds itself. 10011_ M-36 Artificer unfolds itself. 10011_ K-01 Serf collects debris. 10012_ ALERT: Cargo convoy interrupted, initiating access lockdown. Map ----- +----------------------------------------------------+ | ???# # #????# # % # #?????? | | ???# ################ # #????????? | | ???# ## %+ % ""#????????? | | ???# ## # % [ ""#????????? | | ???########## # T"#????????? | | ??? ? #"" # ""#????????? | | ??? #"Y ######## "#????????? | | ???"" """ #"" #??????# #????????? | | ??""" """ # #??????# * % ##???????? | | """ """ # #??????########## ???????? | | + #???????????###??? ??????? | | # #??????????????????#?????? | | """ """ !# #????????????????????????? | | ??""" """ # #????????????????????????? | | ????" """ # """ #????""??????????????????? | | ???? # """ #??? ""??????????????????? | | ????? # """ #? """?????????????????? | | ????######### # ????????????????? | | ????????????# + ????????????????? | | ????????????# # ""??????????????????? | | ????????????######## #? ?????????????????????? | | ???????????????????# #?? ?????????????????????? | | ???????????????????# #????????????????????????? | | ???????????????????# % #????????????????????????? | | ???????????????????# ###############??????????? | | ???????????????????# %= #@ #??????????? | | ???????????????????# # #??????????? | | ??????????????????##!=! # #??????????? | | ??????????????????# %%[ # #??????????? | | ?????????????????## !|= # #??????????? | | ?????????????????# %%%# #???Y??????? | | ?????????????????## %%# #??????????? | | ?????????????????# # #??????????? | | ?????????########## % #??????????? | | ?????????# # %* ! #??????????? | | ?????????# #! hp % #??????????? | | ?????????# ! #* Ch= +# ##############???? | | ?????????# ! =! i%hh #???? | | ?????????# # = m ] #???? | | ?????????# # %k * #???? | | ?????????# # A # ????? | | ?????????# " ! h %# ????? | | ?????????#####+#### "R% % # ?????? | | ?????????????#????# """% !%= ####+#########?????? | | ??????????????????##" ! != #??????????? | | ??????????????????# % ^ #??????????? | | ?????????????# #### * ^ #??????????? | | ?????????????# % ^ ^ #??????????? | | ?????? #### #+#+ ######## ###########? | | ???????? ?????# != # # # #? | +----------------------------------------------------+ Best States ------------- Heat Dissipation 84 Energy Generation 23 Energy Capacity 325 Matter Stores 300 Matter Capacity 300 Sight Range 22 Terrain Scan Range 16 Terrain Scan Density 10 Corruption Containment 12 Armor Coverage 450 Weapon Cycling 15 Phase Shifting 10 Evasion (%) 55 Targeting Accuracy 8 Kinecelleration 40 Item Schematics ----------------- None Robot Schematics ------------------ None Fabricated ------------ Nothing Alien Tech Used ----------------- None Achievements -------------- Just Shoot The Terminal Challenges ------------ None Game ------ Seed SwordSignalWeb Manual? 0 Play Time 01:52:53 Cumulative 105.8 hours Start 2023.10.13 @ 23:18:21 End 2023.10.14 @ 01:25:21 Sessions 1 Manual Loads 0 Difficulty Rogue Special Mode None Game No. 61 Rogue 61 Adventurer 0 Explorer 0 Win Type - Total 0 Types 0/0/0/0/0/0/0/0/0 Lore% 27 Gallery% 54 Achievement% 45 Wizard Run 0 Options --------- ASCII 0 Keyboard 1 Movement Numpad Keybinds 0 Fullscreen 1 Font 24/Smallcaps Map View 76x50 Tactical HUD 1 Map Filters NONE Filters NONE Steam 1 RUN: a15cb9ae-2666-4db5-8736-8b4fe709006f